[Event "Catalan Youth Championship 2024"]
[Site "Cambrils"]
[Date "2024.03.27"]
[Round "7.10"]
[White "Uber Gracia, Hugo"]
[Black "Villa Tornero, Alex"]
[Result "0-1"]
[ECO "A17"]
[WhiteElo "2237"]
[BlackElo "2329"]
[Annotator "RC"]
[PlyCount "58"]
[EventDate "2024.03.13"]
[EventType "swiss"]
[EventCountry "ESP"]
[SourceTitle "playchess.com"]
[Source "ChessBase"]
[SourceQuality "1"]
[TimeControl "5400+30"]

1. c4 {[%emt 0:00:03]} e6 {[%emt 0:00:53]} 2. Nf3 {[%emt 0:00:09]} Nf6 {[%emt 0:00:07]} 3. Nc3 {[%emt 0:00:11]} d5 {[%emt 0:00:12]} 4. e3 {[%emt 0:00:11]} b6 {[%emt 0:00:15]} 5. b3 {[%emt 0:00:13]} Bb7 {[%emt 0:00:04]} 6. Bb2 {[%emt 0:00:08]} Bd6 {[%emt 0:00:13]} 7. Rc1 {[%emt 0:01:01]} a6 {[%emt 0:00:12]} 8. cxd5 {[%emt 1:32:34]} exd5 {[%emt 0:02:02]} 9. Qc2 {[%emt 0:00:00]} O-O {[%emt 0:02:06]} 10. d4 {[%emt 0:00:00]} Re8 {[%emt 0:04:42]} 11. g3 {[%emt 0:00:00]} a5 {[%emt 0:18:53]} 12. a3 {[%emt 0:02:00]} c6 {[%emt 1:06:51]} 13. Bg2 {[%emt 0:00:00]} Qe7 {[%emt 0:00:00]} 14. Ra1 {[%emt 0:00:00]} Ba6 {[%emt 0:01:00]} 15. Ne2 {[%emt 0:00:00]} Nbd7 {[%emt 0:00:00]} 16. O-O {[%emt 0:00:00]} Ne4 {[%emt 0:00:00]} 17. Rfe1 {[%emt 0:00:00]} Nxf2 {[%emt 0:00:00]} 18. Nf4 {[%emt 0:00:00]} Ne4 {[%emt 0:00:00]} 19. Qxc6 {[%emt 0:03:30]} Rac8 {[%emt 0:00:00]} 20. Qa4 {[%emt 0:00:00]} Bxf4 {[%emt 0:00:00]} 21. exf4 {[%emt 0:00:00]} Rc2 {[%emt 0:00:00]} 22. Bc1 {[%emt 0:00:00]} Nc3 {[%emt 0:00:00]} 23. Rxe7 {[%emt 0:00:00]} Rxe7 {[%emt 0:00:00]} 24. Bd2 {[%emt 0:02:30]} Nxa4 {[%emt 0:00:00]} 25. bxa4 {[%emt 0:00:00]} Bd3 {[%emt 0:00:00]} 26. Rd1 {[%emt 0:00:00]} Be2 {[%emt 0:00:00]} 27. Re1 {[%emt 0:00:00]} Kf8 {[%emt 0:00:00]} 28. Rc1 {[%emt 0:00:00]} Rxc1+ {[%emt 0:00:00]} 29. Bxc1 {[%emt 0:00:00]} Bxf3 {[%emt 0:00:00]} 0-1

[Event "Catalan Youth Championship 2024"]
[Site "Cambrils"]
[Date "2024.03.27"]
[Round "7.11"]
[White "Herman Gamazo, Isaac"]
[Black "Tortajada Marti, Nil"]
[Result "1-0"]
[ECO "B77"]
[WhiteElo "2096"]
[BlackElo "1838"]
[Annotator "RC"]
[PlyCount "63"]
[EventDate "2024.03.13"]
[EventType "swiss"]
[EventCountry "ESP"]
[SourceTitle "playchess.com"]
[Source "ChessBase"]
[SourceQuality "1"]
[TimeControl "5400+30"]

1. e4 {[%emt 0:00:21]} c5 {[%emt 0:00:13]} 2. Nf3 {[%emt 0:00:17]} d6 {[%emt 0:00:08]} 3. d4 {[%emt 0:00:33]} cxd4 {[%emt 0:00:05]} 4. Nxd4 {[%emt 0:00:08]} Nf6 {[%emt 0:00:04]} 5. Nc3 {[%emt 0:00:12]} g6 {[%emt 1:32:30]} 6. Be3 {[%emt 0:00:29]} Bg7 {[%emt 0:00:00]} 7. f3 {[%emt 0:00:15]} Nc6 {[%emt 0:00:00]} 8. Qd2 {[%emt 0:00:19]} O-O {[%emt 0:00:00]} 9. Bc4 {[%emt 0:00:08]} Bd7 {[%emt 0:00:00]} 10. h4 {[%emt 0:00:09]} h5 {[%emt 0:00:00]} 11. O-O-O {[%emt 0:00:17]} Rc8 {[%emt 0:00:00]} 12. Nxc6 {[%emt 0:00:50]} Bxc6 {[%emt 0:00:00]} 13. Bb3 {[%emt 0:00:44]} b5 {[%emt 0:04:00]} 14. g4 {[%emt 1:32:48]} Qa5 {[%emt 0:00:00]} 15. Kb1 {[%emt 0:00:00]} b4 {[%emt 0:00:00]} 16. Nd5 {[%emt 0:00:00]} Nxd5 {[%emt 0:00:00]} 17. exd5 {[%emt 0:00:00]} Ba4 {[%emt 0:00:00]} 18. gxh5 {[%emt 0:00:00]} Bxb3 {[%emt 0:00:00]} 19. cxb3 {[%emt 0:02:30]} Qc7 {[%emt 0:00:00]} 20. Rhg1 {[%emt 0:00:00]} Qd7 {[%emt 0:00:00]} 21. Qd3 {[%emt 0:00:00]} Qh3 {[%emt 0:00:00]} 22. hxg6 {[%emt 0:00:00]} fxg6 {[%emt 0:00:00]} 23. Rxg6 {[%emt 0:00:00]} Kf7 {[%emt 0:00:00]} 24. Rxg7+ {[%emt 0:00:00]} Ke8 {[%emt 0:02:54]} 25. Rxe7+ {[%emt 0:00:00]} Kxe7 {[%emt 0:00:42]} 26. Bg5+ {[%emt 0:00:00]} Rf6 {[%emt 0:01:33]} 27. Qh7+ {[%emt 0:00:00]} Kf8 {[%emt 0:00:58]} 28. Qh8+ {[%emt 0:00:00]} Kf7 {[%emt 0:00:10]} 29. Qxf6+ {[%emt 0:00:00]} Kg8 {[%emt 0:00:19]} 30. Qg6+ {[%emt 0:00:00]} Kf8 {[%emt 0:00:42]} 31. Bh6+ {[%emt 0:00:00]} Ke7 {[%emt 0:00:47]} 32. Qg7+ {[%emt 0:00:00]} 1-0

[Event "Catalan Youth Championship 2024"]
[Site "Cambrils"]
[Date "2024.03.27"]
[Round "7.12"]
[White "Garcia Canals, Gerard"]
[Black "Escoriza Pons, Xavier"]
[Result "0-1"]
[ECO "D36"]
[WhiteElo "1814"]
[BlackElo "1941"]
[Annotator "NA RC"]
[PlyCount "72"]
[EventDate "2024.03.13"]
[EventType "swiss"]
[EventCountry "ESP"]
[SourceTitle "playchess.com"]
[Source "ChessBase"]
[SourceQuality "1"]
[TimeControl "5400+30"]

1. d4 {[%emt 0:00:03]} d5 {[%emt 0:00:34]} 2. c4 {[%emt 0:00:17]} e6 {[%emt 0:00:24]} 3. Nc3 {[%emt 0:00:28]} Nf6 {[%emt 0:00:29]} 4. cxd5 {[%emt 0:00:41]} exd5 {[%emt 0:00:13]} 5. Bg5 {[%emt 0:00:51]} Be7 {[%emt 1:31:20]} 6. e3 {[%emt 0:00:39]} O-O {[%emt 0:00:00]} 7. Bd3 {[%emt 0:02:10]} c6 {[%emt 0:00:00]} 8. Qc2 {[%emt 0:02:18]} Nbd7 {[%emt 0:01:30]} 9. Nge2 {[%emt 0:00:58]} Re8 {[%emt 0:00:00]} 10. O-O {[%emt 0:01:13]} Nf8 {[%emt 0:01:00]} 11. f3 {[%emt 1:26:22]} Ng6 {[%emt 0:00:30]} 12. e4 {[%emt 0:00:30]} dxe4 {[%emt 0:00:30]} 13. fxe4 {[%emt 0:00:00]} Be6 $11 {[%emt 0:00:30]} 14. h3 {[%emt 0:01:00]} c5 {[%emt 0:00:30]} 15. d5 {[%emt 0:00:00]} Bd7 {[%emt 0:00:30]} 16. Be3 {[%emt 0:01:00]} Bd6 {[%emt 0:00:00]} 17. Bb5 {[%emt 0:00:30]} Bxb5 {[%emt 0:00:00]} 18. Nxb5 {[%emt 0:00:30]} Nxe4 {[%emt 0:01:30]} 19. Rad1 {[%emt 0:00:30]} a6 {[%emt 0:00:30]} 20. Nxd6 {[%emt 0:00:00]} Qxd6 {[%emt 0:00:00]} 21. Rf3 {[%emt 0:01:00]} Rac8 {[%emt 0:01:00]} 22. Nc3 {[%emt 0:00:30]} Nxc3 {[%emt 0:00:30]} 23. Qxc3 {[%emt 0:00:30]} Re5 {[%emt 0:00:00]} 24. Qd3 {[%emt 0:00:30]} Rd8 {[%emt 0:00:00]} 25. Qc4 {[%emt 0:00:00]} Rxd5 {[%emt 0:00:00]} 26. Rxd5 {[%emt 0:00:00]} Qxd5 {[%emt 0:00:00]} 27. Qxc5 {[%emt 0:01:30]} Qe4 {[%emt 0:02:30]} 28. Qc7 {[%emt 0:00:30]} Rd1+ {[%emt 0:00:00]} 29. Kf2 {[%emt 0:00:00]} Qh4+ {[%emt 0:00:00]} 30. g3 {[%emt 0:00:00]} Qe7 {[%emt 0:00:00]} 31. Qc2 {[%emt 0:00:00]} Rd8 {[%emt 0:02:00]} 32. h4 {[%emt 0:02:00]} Ne5 {[%emt 0:00:30]} 33. Bc5 {[%emt 0:00:00]} Rc8 {[%emt 0:00:00]} 34. Rc3 {[%emt 0:00:00]} Rxc5 {[%emt 0:00:00]} 35. b4 {[%emt 0:00:00]} Ng4+ {[%emt 0:00:00]} 36. Kg1 {[%emt 0:00:00]} Qe1+ {[%emt 0:00:00]} 0-1

[Event "Catalan Youth Championship 2024"]
[Site "Cambrils"]
[Date "2024.03.27"]
[Round "7.13"]
[White "Anguera Staina, Maxim"]
[Black "Salinas Tomas, Daniel"]
[Result "1-0"]
[ECO "C00"]
[WhiteElo "2020"]
[BlackElo "2386"]
[Annotator "RC"]
[PlyCount "81"]
[EventDate "2024.03.13"]
[EventType "swiss"]
[EventCountry "ESP"]
[SourceTitle "playchess.com"]
[Source "ChessBase"]
[SourceQuality "1"]
[TimeControl "5400+30"]

1. Nf3 {[%emt 0:00:02]} d5 {[%emt 0:00:07]} 2. g3 {[%emt 0:00:08]} e6 {[%emt 0:00:08]} 3. Bg2 {[%emt 0:00:05]} Nf6 {[%emt 0:00:09]} 4. O-O {[%emt 0:00:06]} Be7 {[%emt 0:00:06]} 5. d3 {[%emt 0:00:06]} O-O {[%emt 0:00:10]} 6. Nbd2 {[%emt 0:00:23]} c5 {[%emt 0:00:14]} 7. e4 {[%emt 0:00:42]} Nc6 {[%emt 0:00:10]} 8. Re1 {[%emt 0:00:21]} b5 {[%emt 0:00:10]} 9. e5 {[%emt 0:06:11]} Nd7 {[%emt 0:00:05]} 10. Nf1 {[%emt 0:00:20]} Bb7 {[%emt 0:00:05]} 11. h4 {[%emt 0:00:26]} Qc7 {[%emt 0:00:04]} 12. Bf4 {[%emt 0:00:47]} Rfc8 {[%emt 0:00:06]} 13. N1h2 {[%emt 0:01:04]} Qd8 {[%emt 0:01:41]} 14. Ng4 {[%emt 0:01:42]} Bf8 {[%emt 0:00:38]} 15. h5 {[%emt 0:14:30]} h6 {[%emt 0:00:05]} 16. Qd2 {[%emt 0:00:11]} Nd4 {[%emt 0:00:28]} 17. Ngh2 {[%emt 0:05:46]} Nxf3+ {[%emt 0:22:40]} 18. Nxf3 {[%emt 0:00:32]} d4 {[%emt 0:01:04]} 19. g4 {[%emt 0:14:53]} Be7 {[%emt 0:04:53]} 20. g5 {[%emt 0:00:23]} Bxf3 {[%emt 0:03:12]} 21. Bxf3 {[%emt 0:00:04]} hxg5 {[%emt 0:00:17]} 22. Bxa8 {[%emt 0:00:08]} gxf4 {[%emt 0:00:25]} 23. Bb7 {[%emt 0:01:08]} Rc7 {[%emt 0:02:37]} 24. Bf3 {[%emt 0:01:52]} Bg5 {[%emt 0:02:17]} 25. a4 {[%emt 0:00:31]} Bh6 {[%emt 0:02:10]} 26. Qe2 {[%emt 0:04:47]} Qg5+ {[%emt 0:04:21]} 27. Kf1 {[%emt 0:01:08]} b4 {[%emt 0:02:09]} 28. Qe4 {[%emt 0:00:49]} g6 {[%emt 0:02:29]} 29. hxg6 {[%emt 0:08:53]} fxg6 {[%emt 0:00:02]} 30. b3 {[%emt 0:02:01]} Bg7 {[%emt 0:04:33]} 31. Ke2 {[%emt 0:00:54]} Nxe5 {[%emt 0:01:31]} 32. Qa8+ {[%emt 0:01:05]} Kf7 {[%emt 0:00:30]} 33. Rh1 {[%emt 0:00:20]} c4 {[%emt 0:13:45]} 34. bxc4 {[%emt 0:35:12]} Nxc4 {[%emt 0:01:14]} 35. Rag1 {[%emt 0:00:00]} Qe5+ {[%emt 0:00:14]} 36. Be4 {[%emt 0:00:00]} Nb6 {[%emt 0:02:56]} 37. Qd8 {[%emt 0:00:00]} Rxc2+ {[%emt 0:02:25]} 38. Kd1 {[%emt 0:00:00]} Rc1+ {[%emt 0:06:15]} 39. Kxc1 {[%emt 0:00:00]} Qc5+ {[%emt 0:00:02]} 40. Kd1 {[%emt 0:00:00]} g5 {[%emt 0:00:09]} 41. Rxg5 {[%emt 0:03:30]} 1-0

[Event "Catalan Youth Championship 2024"]
[Site "Cambrils"]
[Date "2024.03.27"]
[Round "7.14"]
[White "Montes Molina, Ivan"]
[Black "Clotet Mas, Dan"]
[Result "1/2-1/2"]
[ECO "C56"]
[WhiteElo "2100"]
[BlackElo "2028"]
[Annotator "RC"]
[PlyCount "150"]
[EventDate "2024.03.13"]
[EventType "swiss"]
[EventCountry "ESP"]
[SourceTitle "playchess.com"]
[Source "ChessBase"]
[SourceQuality "1"]
[TimeControl "5400+30"]

1. e4 {[%emt 0:00:04]} e5 {[%emt 0:00:05]} 2. Nf3 {[%emt 0:00:05]} Nc6 {[%emt 0:00:03]} 3. d4 {[%emt 0:00:05]} exd4 {[%emt 0:00:03]} 4. Bc4 {[%emt 0:00:05]} Nf6 {[%emt 0:00:11]} 5. e5 {[%emt 0:00:05]} d5 {[%emt 0:00:03]} 6. Bb5 {[%emt 0:00:03]} Nd7 {[%emt 0:00:03]} 7. O-O {[%emt 0:00:11]} Be7 {[%emt 0:00:03]} 8. Bxc6 {[%emt 0:00:06]} bxc6 {[%emt 0:00:03]} 9. Nxd4 {[%emt 0:00:05]} Nb8 {[%emt 0:00:04]} 10. f4 {[%emt 0:07:07]} c5 {[%emt 0:11:00]} 11. Nf3 {[%emt 0:00:13]} Bf5 {[%emt 0:02:57]} 12. Nc3 {[%emt 1:28:21]} d4 {[%emt 0:08:19]} 13. Ne2 {[%emt 0:00:00]} h5 {[%emt 0:01:10]} 14. Ng3 {[%emt 0:01:00]} Bc8 {[%emt 0:07:54]} 15. Ne4 {[%emt 0:00:00]} Bf5 {[%emt 0:07:23]} 16. Re1 {[%emt 0:00:00]} Kf8 {[%emt 0:59:09]} 17. b3 {[%emt 0:00:00]} a5 {[%emt 0:00:00]} 18. Ng3 {[%emt 0:02:00]} Bc8 {[%emt 0:00:00]} 19. Qd3 {[%emt 0:00:00]} g6 {[%emt 0:00:00]} 20. Ne4 {[%emt 0:00:00]} Bf5 {[%emt 0:00:00]} 21. Qc4 {[%emt 0:00:00]} Be6 {[%emt 0:00:00]} 22. Qf1 {[%emt 0:02:00]} Qd5 {[%emt 0:00:00]} 23. Ba3 {[%emt 0:00:00]} Na6 {[%emt 0:00:00]} 24. c3 {[%emt 0:00:00]} dxc3 {[%emt 0:00:00]} 25. Nxc3 {[%emt 0:00:00]} Qc6 {[%emt 0:00:00]} 26. Ne4 {[%emt 0:00:00]} Nb4 {[%emt 0:00:00]} 27. Bxb4 {[%emt 0:00:00]} axb4 {[%emt 0:00:00]} 28. Neg5 {[%emt 0:00:00]} Kg7 {[%emt 0:00:00]} 29. Nxe6+ {[%emt 0:00:00]} Qxe6 {[%emt 0:00:00]} 30. Ng5 {[%emt 0:00:00]} Bxg5 {[%emt 0:07:00]} 31. fxg5 {[%emt 0:00:00]} Rhe8 {[%emt 0:00:00]} 32. Qf2 {[%emt 0:00:01]} c4 {[%emt 0:00:00]} 33. bxc4 {[%emt 0:01:14]} Qxc4 {[%emt 0:00:00]} 34. Rac1 {[%emt 0:00:30]} Qxa2 {[%emt 0:00:00]} 35. Qf6+ {[%emt 0:01:02]} Kg8 {[%emt 0:00:00]} 36. Rxc7 {[%emt 0:04:13]} Ra7 {[%emt 0:00:00]} 37. Rc6 {[%emt 0:00:00]} Qd2 {[%emt 0:00:00]} 38. Rf1 {[%emt 0:00:29]} Qd4+ {[%emt 0:00:00]} 39. Kh1 {[%emt 0:00:25]} Qxe5 {[%emt 0:00:00]} 40. Rc8 {[%emt 0:00:34]} Qb5 {[%emt 0:02:35]} 41. Rxe8+ {[%emt 0:00:30]} Qxe8 {[%emt 0:00:01]} 42. Qb6 {[%emt 0:00:02]} Ra2 {[%emt 0:02:33]} 43. Qxb4 {[%emt 0:00:56]} Qe2 {[%emt 0:00:25]} 44. Rg1 {[%emt 0:00:15]} Qf2 {[%emt 0:00:43]} 45. Qb8+ {[%emt 0:00:07]} Kh7 {[%emt 0:00:11]} 46. Qe5 {[%emt 0:01:42]} Re2 {[%emt 0:00:32]} 47. Qc3 {[%emt 0:00:00]} Rc2 {[%emt 0:00:49]} 48. Qa3 {[%emt 0:00:00]} Qf5 {[%emt 0:00:28]} 49. Qa7 {[%emt 0:00:02]} Rf2 {[%emt 0:00:32]} 50. Qe7 {[%emt 0:00:09]} Kg7 {[%emt 0:00:26]} 51. h3 {[%emt 0:00:54]} Rf3 {[%emt 0:00:36]} 52. Kh2 {[%emt 0:01:24]} Qf4+ {[%emt 0:00:31]} 53. Kh1 {[%emt 0:00:04]} Re3 {[%emt 0:00:32]} 54. Qd8 {[%emt 0:00:55]} Qf5 {[%emt 0:00:33]} 55. Qd4+ {[%emt 0:00:20]} Qe5 {[%emt 0:00:11]} 56. Qd8 {[%emt 0:01:12]} Rg3 {[%emt 0:00:45]} 57. Qd2 {[%emt 0:00:00]} Rxg5 {[%emt 0:00:28]} 58. Re1 {[%emt 0:00:06]} Qf6 {[%emt 0:00:19]} 59. Qd3 {[%emt 0:00:41]} Rf5 {[%emt 0:00:25]} 60. Rd1 {[%emt 0:00:31]} Kh7 {[%emt 0:00:44]} 61. Re1 {[%emt 0:00:24]} Kg7 {[%emt 0:00:34]} 62. Rd1 {[%emt 0:00:20]} Rf4 {[%emt 0:00:26]} 63. Qd6 {[%emt 0:00:28]} Rf1+ {[%emt 0:00:22]} 64. Kh2 {[%emt 0:00:05]} Rxd1 {[%emt 0:00:06]} 65. Qxd1 {[%emt 0:00:03]} Qf4+ {[%emt 0:00:12]} 66. Kh1 {[%emt 0:00:06]} h4 {[%emt 0:02:01]} 67. Qa1+ {[%emt 0:00:05]} Qf6 {[%emt 0:00:00]} 68. Qa4 {[%emt 0:00:17]} g5 {[%emt 0:00:00]} 69. Qd1 {[%emt 0:00:20]} Qf4 {[%emt 0:00:00]} 70. Qa1+ {[%emt 0:00:07]} Qf6 {[%emt 0:00:22]} 71. Qd1 {[%emt 0:00:04]} Qc3 {[%emt 0:00:37]} 72. Qf1 {[%emt 0:00:37]} f6 {[%emt 0:00:41]} 73. Qb1 {[%emt 0:00:12]} Kh6 {[%emt 0:00:57]} 74. Qd1 {[%emt 0:00:54]} Kg6 {[%emt 0:00:33]} 75. Qd8 {[%emt 0:00:42]} Qc1+ {[%emt 0:00:45]} 1/2-1/2

[Event "Catalan Youth Championship 2024"]
[Site "Cambrils"]
[Date "2024.03.27"]
[Round "7.15"]
[White "Vila I Bague, Arnau"]
[Black "Benseny Martinez, Guerau"]
[Result "1/2-1/2"]
[ECO "B41"]
[WhiteElo "1947"]
[BlackElo "1986"]
[Annotator "NA RC"]
[PlyCount "40"]
[EventDate "2024.03.13"]
[EventType "swiss"]
[EventCountry "ESP"]
[SourceTitle "playchess.com"]
[Source "ChessBase"]
[SourceQuality "1"]
[TimeControl "5400+30"]

1. e4 {[%emt 0:00:03]} c5 {[%emt 0:00:14]} 2. Nf3 {[%emt 0:00:06]} e6 {[%emt 0:00:15]} 3. d4 {[%emt 0:00:05]} cxd4 {[%emt 0:00:04]} 4. Nxd4 {[%emt 0:00:07]} a6 {[%emt 0:00:44]} 5. Be2 {[%emt 0:00:05]} b5 {[%emt 0:01:08]} 6. a4 {[%emt 1:33:04]} b4 {[%emt 0:02:20]} 7. O-O {[%emt 0:00:00]} Bb7 {[%emt 0:04:33]} 8. Nd2 {[%emt 0:00:00]} d6 {[%emt 0:07:57]} 9. Re1 $11 {[%emt 0:00:00]} (9. c3 $14 {deserves consideration.}) 9... Nf6 {[%emt 0:01:42]} 10. Bf1 {[%emt 0:00:00]} Be7 {[%emt 0:01:58]} 11. c3 {[%emt 0:00:00]} bxc3 {[%emt 0:02:07]} 12. bxc3 {[%emt 0:00:00]} Qc7 {[%emt 0:03:38]} 13. Qb3 {[%emt 0:00:00]} Nbd7 {[%emt 0:03:55]} 14. Ba3 {[%emt 0:00:00]} Rb8 {[%emt 0:12:23]} 15. Qa2 {[%emt 0:00:00]} Nc5 {[%emt 0:04:23]} 16. Bxc5 {[%emt 0:00:00]} dxc5 {[%emt 0:07:55]} 17. N4f3 {[%emt 0:00:00]} O-O {[%emt 0:03:38]} 18. Rab1 {[%emt 0:00:00]} Qf4 {[%emt 0:03:16]} 19. Qc2 {[%emt 0:00:00]} Rfd8 {[%emt 0:06:04]} 20. g3 {[%emt 0:00:00]} Qc7 {[%emt 0:12:32]} 1/2-1/2

[Event "Catalan Youth Championship 2024"]
[Site "Cambrils"]
[Date "2024.03.27"]
[Round "7.16"]
[White "Sviridenko, Yaroslav"]
[Black "Bergaretxe Gavalda, Unai"]
[Result "1-0"]
[ECO "B51"]
[WhiteElo "1961"]
[BlackElo "1921"]
[Annotator "NA RC"]
[PlyCount "101"]
[EventDate "2024.03.13"]
[EventType "swiss"]
[EventCountry "ESP"]
[SourceTitle "playchess.com"]
[Source "ChessBase"]
[SourceQuality "1"]
[TimeControl "5400+30"]

1. e4 {[%emt 0:00:52]} c5 {[%emt 0:00:05]} 2. Nf3 {[%emt 0:00:05]} d6 {[%emt 0:00:04]} 3. Bb5+ {[%emt 0:00:06]} Nd7 {[%emt 0:00:07]} 4. a4 {[%emt 0:00:05]} a6 {[%emt 0:00:03]} 5. Be2 {[%emt 0:00:08]} b6 {[%emt 0:00:05]} 6. d4 {[%emt 0:00:30]} cxd4 {[%emt 0:00:09]} 7. Qxd4 {[%emt 0:00:07]} Bb7 {[%emt 0:00:10]} 8. Nc3 {[%emt 0:00:15]} Ngf6 {[%emt 0:00:29]} 9. O-O {[%emt 0:00:15]} g6 {[%emt 0:03:31]} (9... e6 $11 {deserves consideration.}) 10. Be3 {[%emt 0:13:15]} Bg7 {[%emt 0:01:17]} 11. Nd2 {[%emt 0:01:30]} O-O {[%emt 0:00:31]} 12. Qb4 $11 {[%emt 0:03:01]} Rb8 {[%emt 0:16:35]} 13. f3 {[%emt 0:00:16]} Qc7 {[%emt 0:04:07]} 14. Nc4 {[%emt 0:01:30]} Ba8 {[%emt 0:02:50]} 15. Rfd1 {[%emt 0:03:26]} h5 {[%emt 0:04:59]} 16. a5 {[%emt 0:08:32]} b5 {[%emt 0:04:57]} 17. Nb6 {[%emt 0:00:09]} Nxb6 {[%emt 0:01:29]} 18. Bxb6 {[%emt 0:03:11]} Rxb6 {[%emt 0:00:35]} 19. axb6 {[%emt 0:00:15]} Qxb6+ {[%emt 0:00:08]} 20. Kh1 {[%emt 0:01:49]} h4 {[%emt 0:02:43]} 21. Qd4 {[%emt 0:07:34]} Qb7 {[%emt 0:11:28]} 22. Qe3 {[%emt 0:01:40]} Rc8 {[%emt 0:06:58]} 23. Ra2 {[%emt 0:04:21]} Rc6 {[%emt 0:04:11]} 24. Rda1 {[%emt 0:04:08]} h3 {[%emt 0:06:36]} 25. Bxb5 {[%emt 0:01:39]} hxg2+ {[%emt 0:00:07]} 26. Kxg2 {[%emt 0:00:18]} Rxc3 {[%emt 0:01:22]} 27. bxc3 {[%emt 0:00:24]} Qxb5 {[%emt 0:00:07]} 28. Rxa6 {[%emt 0:00:50]} Bc6 {[%emt 0:01:18]} 29. R1a5 {[%emt 0:04:43]} Qc4 {[%emt 0:00:17]} 30. Qd3 {[%emt 0:01:04]} Qxd3 {[%emt 0:02:28]} 31. cxd3 {[%emt 0:00:09]} Bd7 {[%emt 0:00:10]} 32. Ra7 {[%emt 0:02:38]} e5 {[%emt 0:03:33]} 33. R5a6 {[%emt 0:01:40]} Bf8 {[%emt 0:00:06]} 34. d4 {[%emt 0:01:24]} Be6 {[%emt 0:05:18]} 35. d5 {[%emt 0:00:24]} Nxd5 {[%emt 0:00:17]} 36. exd5 {[%emt 0:00:26]} Bxd5 {[%emt 0:00:06]} 37. Rb6 {[%emt 0:01:36]} e4 {[%emt 0:04:13]} 38. fxe4 {[%emt 0:01:41]} Bxe4+ {[%emt 0:00:06]} 39. Kf1 {[%emt 0:00:09]} Kg7 {[%emt 0:03:47]} 40. Rb8 {[%emt 0:02:51]} g5 {[%emt 0:00:42]} 41. Rd8 {[%emt 0:04:33]} Bd3+ {[%emt 0:02:34]} 42. Ke1 {[%emt 0:00:19]} Bc4 {[%emt 0:00:11]} 43. Rc7 {[%emt 0:00:59]} Be6 {[%emt 0:00:19]} 44. c4 {[%emt 0:01:14]} Kg8 {[%emt 0:02:51]} 45. Re8 {[%emt 0:01:15]} Bf5 {[%emt 0:00:49]} 46. Rb7 {[%emt 0:00:33]} Kg7 {[%emt 0:00:41]} 47. Rbb8 {[%emt 0:00:17]} Bd3 {[%emt 0:00:26]} 48. Rxf8 {[%emt 0:00:18]} Bxc4 {[%emt 0:00:03]} 49. Rfd8 {[%emt 0:00:20]} d5 {[%emt 0:00:04]} 50. Rbc8 {[%emt 0:00:26]} Bb3 {[%emt 0:00:06]} 51. Rc5 {[%emt 0:00:11]} 1-0

[Event "Catalan Youth Championship 2024"]
[Site "Cambrils"]
[Date "2024.03.27"]
[Round "7.17"]
[White "Valle Luis, Leo"]
[Black "Funes Ostos, Aitor"]
[Result "1-0"]
[ECO "C64"]
[WhiteElo "2230"]
[BlackElo "2125"]
[Annotator "RC"]
[PlyCount "105"]
[EventDate "2024.03.13"]
[EventType "swiss"]
[EventCountry "ESP"]
[SourceTitle "playchess.com"]
[Source "ChessBase"]
[SourceQuality "1"]
[TimeControl "5400+30"]

1. e4 {[%emt 0:00:03]} e5 {[%emt 0:00:07]} 2. Nf3 {[%emt 0:00:09]} Nc6 {[%emt 0:00:05]} 3. Bb5 {[%emt 0:00:05]} a6 {[%emt 0:00:04]} 4. Ba4 {[%emt 0:00:01]} Bc5 {[%emt 0:00:06]} 5. c3 {[%emt 0:00:15]} Nge7 {[%emt 0:00:04]} 6. O-O {[%emt 0:00:41]} Ng6 {[%emt 0:00:13]} 7. d4 {[%emt 0:00:04]} Ba7 {[%emt 0:00:05]} 8. Bg5 {[%emt 0:00:13]} f6 {[%emt 0:00:05]} 9. Be3 {[%emt 0:00:05]} O-O {[%emt 0:00:11]} 10. Nbd2 {[%emt 0:00:47]} Kh8 {[%emt 0:00:24]} 11. Re1 {[%emt 0:01:58]} d6 {[%emt 0:00:11]} 12. Nf1 {[%emt 0:01:44]} Bd7 {[%emt 0:02:07]} 13. Ng3 {[%emt 0:01:36]} Qe8 {[%emt 0:04:05]} 14. Bc2 {[%emt 0:01:41]} Bg4 {[%emt 0:01:41]} 15. d5 {[%emt 0:04:40]} Bxe3 {[%emt 0:02:12]} 16. Rxe3 {[%emt 0:06:35]} Nce7 {[%emt 0:00:14]} 17. h3 {[%emt 0:02:30]} Bd7 {[%emt 0:01:51]} 18. c4 {[%emt 0:12:07]} f5 {[%emt 0:12:22]} 19. Rc3 {[%emt 0:00:36]} Nf4 {[%emt 0:07:10]} 20. c5 {[%emt 0:03:42]} Rc8 {[%emt 0:05:33]} 21. Rc1 {[%emt 0:02:46]} h6 {[%emt 0:19:04]} 22. Bb1 {[%emt 0:04:23]} fxe4 {[%emt 0:00:47]} 23. Bxe4 {[%emt 0:00:20]} Qf7 {[%emt 0:00:41]} 24. cxd6 {[%emt 0:12:33]} cxd6 {[%emt 0:02:13]} 25. Rc7 {[%emt 0:00:19]} Nexd5 {[%emt 0:02:06]} 26. Rxb7 {[%emt 0:01:28]} Rxc1 {[%emt 0:00:49]} 27. Qxc1 {[%emt 0:00:50]} Qe6 {[%emt 0:14:07]} 28. Nh4 {[%emt 0:06:42]} Bb5 {[%emt 0:10:51]} 29. Kh2 {[%emt 0:06:23]} Bd3 {[%emt 0:03:18]} 30. Ng6+ {[%emt 0:08:49]} Nxg6 {[%emt 0:00:01]} 31. Bxd3 {[%emt 0:00:02]} Rxf2 {[%emt 0:01:37]} 32. Be4 {[%emt 0:10:44]} Nde7 {[%emt 0:06:34]} 33. Qc7 {[%emt 0:03:00]} Rf7 {[%emt 0:00:54]} 34. Bxg6 {[%emt 0:01:58]} Qxg6 {[%emt 0:00:00]} 35. Qd8+ {[%emt 0:00:01]} Ng8 {[%emt 0:01:12]} 36. Rb8 {[%emt 0:08:40]} Qh7 37. Qxd6 {[%emt 0:00:00]} Rf6 {[%emt 0:02:59]} 38. Qxe5 {[%emt 0:00:00]} Qg6 {[%emt 0:00:13]} 39. Qd5 {[%emt 0:00:00]} Qf7 {[%emt 0:00:50]} 40. Qxf7 {[%emt 0:00:00]} Rxf7 {[%emt 0:00:00]} 41. Ne4 {[%emt 0:00:00]} Rf5 {[%emt 0:01:12]} 42. b4 {[%emt 0:00:00]} Kh7 {[%emt 0:00:13]} 43. Rb6 {[%emt 0:00:00]} a5 {[%emt 0:00:01]} 44. b5 {[%emt 0:00:00]} Ne7 {[%emt 0:00:12]} 45. Re6 {[%emt 0:00:00]} Nd5 {[%emt 0:01:18]} 46. b6 {[%emt 0:00:00]} Rf1 {[%emt 0:01:00]} 47. Nd2 {[%emt 0:01:31]} Rf4 {[%emt 0:00:22]} 48. a3 {[%emt 0:00:33]} Rf7 {[%emt 0:00:56]} 49. Nc4 {[%emt 0:00:10]} a4 {[%emt 0:00:36]} 50. Rd6 {[%emt 0:00:17]} Nc3 {[%emt 0:00:32]} 51. Rc6 {[%emt 0:00:12]} Nd5 {[%emt 0:01:24]} 52. Rc5 {[%emt 0:00:16]} Nc3 {[%emt 0:00:49]} 53. Nd6 {[%emt 0:00:29]} 1-0